{"text_format":"1","workbook":"xlsx","n_sheets":3,"sheets":["Свод","АА8888","АА55555"],"not_rendered":{"charts":0,"images":0,"macros":1,"external_links":0,"defined_names":3,"comments":0,"pivot_tables":0},"unopened":[],"bounds":{"document_bytes":16777216,"sheet_cells":100000,"rows_first":2000,"rows_last":500,"rows_between":2000,"halvings":0,"cell_chars":16384,"cell_head_chars":4096},"cells_cut":0,"cells_raw":0,"read":"whole","date_system":"1900"}

{"sheet":"Свод","index":0,"n_rows":0,"n_cols":0,"rows_kept":0,"cut":false,"hidden":false,"merged":[]}

{"sheet":"АА8888","index":1,"n_rows":185,"n_cols":12,"rows_kept":185,"cut":false,"hidden":false,"merged":[]}
[]
[null,null,"КАРТОЧКА УЧЕТА",null,null,null,null,null,null,null,null,{"$f":"MID(CELL(\"filename\",A1),FIND(\"]\",CELL(\"filename\",A1))+1,65535)&\"/1\"","v":"АА8888/1"}]
[null,null,"работы автомобильной шины"]
[null,"(новой, восстановленной, бывшей в эксплуатации - нужное подчеркнуть)"]
[]
[]
["Обозначение (размер) шины",null,11111,null,null,null,"Модель шины","AAAAA"]
[]
["Заводской номер шины",null,22222]
[]
["Эксплуатационная норма пробега",null,132000,null,null,"км"]
[]
["Стоимость шины",null,100,null,null,"рублей"]
[]
["Изготовитель новой шины или организация, восстановившая шину",null,null,null,null,null,null,"ББББББ"]
[]
["Наименование эксплуатирующей организации"]
[]
[]
["Модель автомобиля (прицепа), его государственный номер ","Дата",null,null,null,"Пробег шины,  км.",null,"Техническое состояние шины при установке",null,null,"Причина снятия шины с эксплуатации","Подпись водителя"]
[null,"установки шины  на ходовое или запасное колесо автомобиля","снятия шины с автомобиля","за период"]
[null,null,null,"с даты","по дату","за период","с начала эксплуатации"]
[1,2,3,4,null,5,6,7,null,null,8,9]
["АА8888","2024-01-01",null,"2020-01-01","2020-12-31",100000,{"$f":"F24","v":100000},"новая"]
["DAF FT XF 105.460",null,null,"2021-01-01","2021-12-31",200000,{"$f":"G24+F25","v":300000}]
[null,null,null,"2022-01-01","2022-12-31",300000,{"$f":"G25+F26","v":600000}]
[null,null,"2023-03-29","2023-01-01","2023-03-29",400000,1000000,null,null,null,"предельный износ"]
[]
[]
[]
[]
[]
[]
[]
[]
[]
[]
["Ответственный за учет работы шины"]
[null,null,null,null,"(подпись)",null,null,null,null,"(инициалы, фамилия)"]
[]
["Заключение комиссии по определению пригодности шины к эксплуатации",null,null,null,null,null,"Не пригодна"]
[]
[]
[]
[]
[]
["Председатель комиссии:"]
[]
["Заместитель главного бухгалтера"]
["(должность)",null,null,null,null,null,"(подпись)",null,null,null,"(инициалы, фамилия)"]
[]
["Члены комиссии:"]
[]
["Главный инженер"]
["(должность)",null,null,null,null,null,"(подпись)",null,null,null,"(инициалы, фамилия)"]
["Начальник отдела эксплуатации транспорта"]
["(должность)",null,null,null,null,null,"(подпись)",null,null,null,"(инициалы, фамилия)"]
["Агент по снабжению"]
["(должность)",null,null,null,null,null,"(подпись)",null,null,null,"(инициалы, фамилия)"]
[]
[]
[]
[]
[]
[null,null,"КАРТОЧКА УЧЕТА",null,null,null,null,null,null,null,null,{"$f":"MID(CELL(\"filename\",A64),FIND(\"]\",CELL(\"filename\",A64))+1,65535)&\"/2\"","v":"АА8888/2"}]
[null,null,"работы автомобильной шины"]
[null,"(новой, восстановленной, бывшей в эксплуатации - нужное подчеркнуть)"]
[]
[]
["Обозначение (размер) шины",null,2222,null,null,null,"Модель шины","ВВВВВ"]
[]
["Заводской номер шины",null,151515]
[]
["Эксплуатационная норма пробега",null,132000,null,null,"км"]
[]
["Стоимость шины",null,2000,null,null,"рублей"]
[]
["Изготовитель новой шины или организация, восстановившая шину",null,null,null,null,null,null,"ГГГ"]
[]
["Наименование эксплуатирующей организации"]
[]
[]
["Модель автомобиля (прицепа), его государственный номер ","Дата",null,null,null,"Пробег шины,  км.",null,"Техническое состояние шины при установке",null,null,"Причина снятия шины с эксплуатации","Подпись водителя"]
[null,"установки шины  на ходовое или запасное колесо автомобиля","снятия шины с автомобиля","за период"]
[null,null,null,"с даты","по дату","за период","с начала эксплуатации"]
[1,2,3,4,null,5,6,7,null,null,8,9]
["АА8888","2024-02-01",null,"2020-01-01","2020-12-31",100000,{"$f":"F87","v":100000},"новая"]
["DAF FT XF 105.460",null,null,"2021-01-01","2021-12-31",200000,{"$f":"G87+F88","v":300000}]
[null,null,null,"2022-01-01","2022-12-31",300000,{"$f":"G88+F89","v":600000}]
[null,null,"2023-03-29","2023-01-01","2023-03-29",400000,1000000,null,null,null,"предельный износ"]
[]
[]
[]
[]
[]
[]
[]
[]
[]
[]
["Ответственный за учет работы шины"]
[null,null,null,null,"(подпись)",null,null,null,null,"(инициалы, фамилия)"]
[]
["Заключение комиссии по определению пригодности шины к эксплуатации",null,null,null,null,null,"Не пригодна"]
[]
[]
[]
[]
[]
["Председатель комиссии:"]
[]
["Заместитель главного бухгалтера"]
["(должность)",null,null,null,null,null,"(подпись)",null,null,null,"(инициалы, фамилия)"]
[]
["Члены комиссии:"]
[]
["Главный инженер"]
["(должность)",null,null,null,null,null,"(подпись)",null,null,null,"(инициалы, фамилия)"]
["Начальник отдела эксплуатации транспорта"]
["(должность)",null,null,null,null,null,"(подпись)",null,null,null,"(инициалы, фамилия)"]
["Агент по снабжению"]
["(должность)",null,null,null,null,null,"(подпись)",null,null,null,"(инициалы, фамилия)"]
[]
[]
[]
[]
[]
[null,null,"КАРТОЧКА УЧЕТА",null,null,null,null,null,null,null,null,{"$f":"MID(CELL(\"filename\",A127),FIND(\"]\",CELL(\"filename\",A127))+1,65535)&\"/2\"","v":"АА8888/2"}]
[null,null,"работы автомобильной шины"]
[null,"(новой, восстановленной, бывшей в эксплуатации - нужное подчеркнуть)"]
[]
[]
["Обозначение (размер) шины",null,2222,null,null,null,"Модель шины","АААА"]
[]
["Заводской номер шины",null,33333]
[]
["Эксплуатационная норма пробега",null,132000,null,null,"км"]
[]
["Стоимость шины",null,3000,null,null,"рублей"]
[]
["Изготовитель новой шины или организация, восстановившая шину",null,null,null,null,null,null,"ППП"]
[]
["Наименование эксплуатирующей организации"]
[]
[]
["Модель автомобиля (прицепа), его государственный номер ","Дата",null,null,null,"Пробег шины,  км.",null,"Техническое состояние шины при установке",null,null,"Причина снятия шины с эксплуатации","Подпись водителя"]
[null,"установки шины  на ходовое или запасное колесо автомобиля","снятия шины с автомобиля","за период"]
[null,null,null,"с даты","по дату","за период","с начала эксплуатации"]
[1,2,3,4,null,5,6,7,null,null,8,9]
["АА8888","2024-03-01",null,{"$f":"B150","v":"2024-03-01"},"2024-03-31",100000,{"$f":"F150","v":100000},"новая"]
["DAF FT XF 105.460",null,null,"2021-01-01","2021-12-31",200000,{"$f":"G150+F151","v":300000}]
[null,null,null,"2022-01-01","2022-12-31",300000,{"$f":"G151+F152","v":600000}]
[null,null,"2023-03-29","2023-01-01","2023-03-29",400000,1000000,null,null,null,"предельный износ"]
[]
[]
[]
[]
[]
[]
[]
[]
[]
[]
["Ответственный за учет работы шины"]
[null,null,null,null,"(подпись)",null,null,null,null,"(инициалы, фамилия)"]
[]
["Заключение комиссии по определению пригодности шины к эксплуатации",null,null,null,null,null,"Не пригодна"]
[]
[]
[]
[]
[]
["Председатель комиссии:"]
[]
["Заместитель главного бухгалтера"]
["(должность)",null,null,null,null,null,"(подпись)",null,null,null,"(инициалы, фамилия)"]
[]
["Члены комиссии:"]
[]
["Главный инженер"]
["(должность)",null,null,null,null,null,"(подпись)",null,null,null,"(инициалы, фамилия)"]
["Начальник отдела эксплуатации транспорта"]
["(должность)",null,null,null,null,null,"(подпись)",null,null,null,"(инициалы, фамилия)"]
["Агент по снабжению"]
["(должность)",null,null,null,null,null,"(подпись)",null,null,null,"(инициалы, фамилия)"]

{"sheet":"АА55555","index":2,"n_rows":122,"n_cols":12,"rows_kept":122,"cut":false,"hidden":false,"merged":[[120,0,120,2],[120,6,120,8],[120,10,120,11],[121,0,121,2],[121,6,121,8],[121,10,121,11],[118,0,118,2],[118,6,118,8],[118,10,118,11],[119,0,119,2],[119,6,119,8],[119,10,119,11],[116,0,116,2],[116,6,116,8],[116,10,116,11],[117,0,117,2],[117,6,117,8],[117,10,117,11],[101,9,101,10],[109,12,109,13],[111,0,111,2],[111,6,111,8],[111,10,111,11],[112,0,112,2],[112,6,112,8],[112,10,112,11],[112,12,112,13],[97,7,97,9],[97,11,97,12],[98,7,98,9],[98,11,98,12],[99,1,99,2],[100,0,100,2],[100,10,100,11],[94,7,94,9],[94,11,94,12],[95,7,95,9],[95,11,95,12],[96,7,96,9],[96,11,96,12],[91,7,91,9],[91,11,91,12],[92,7,92,9],[92,11,92,12],[93,7,93,9],[93,11,93,12],[88,7,88,9],[88,11,88,12],[89,7,89,9],[89,11,89,12],[90,7,90,9],[90,11,90,12],[85,7,85,9],[85,11,85,12],[86,7,86,9],[86,11,86,12],[87,7,87,9],[87,11,87,12],[82,0,84,0],[82,1,82,2],[82,5,82,6],[82,7,84,9],[82,10,84,10],[82,11,84,12],[83,1,84,1],[83,2,84,2],[83,3,83,5],[73,0,73,1],[73,2,73,4],[75,0,75,1],[75,2,75,4],[77,7,77,11],[79,0,79,2],[79,5,79,8],[69,0,69,1],[69,2,69,4],[69,7,69,11],[71,0,71,1],[71,2,71,4],[71,7,71,11],[63,1,63,7],[63,11,63,12],[64,2,64,9],[65,2,65,9],[66,1,66,9],[67,5,67,10],[57,0,57,2],[57,6,57,8],[57,10,57,11],[58,0,58,2],[58,6,58,8],[58,10,58,11],[55,0,55,2],[55,6,55,8],[55,10,55,11],[56,0,56,2],[56,6,56,8],[56,10,56,11],[53,0,53,2],[53,6,53,8],[53,10,53,11],[54,0,54,2],[54,6,54,8],[54,10,54,11],[38,9,38,10],[46,12,46,13],[48,0,48,2],[48,6,48,8],[48,10,48,11],[49,0,49,2],[49,6,49,8],[49,10,49,11],[49,12,49,13],[34,7,34,9],[34,11,34,12],[35,7,35,9],[35,11,35,12],[36,1,36,2],[37,0,37,2],[37,10,37,11],[31,7,31,9],[31,11,31,12],[32,7,32,9],[32,11,32,12],[33,7,33,9],[33,11,33,12],[28,7,28,9],[28,11,28,12],[29,7,29,9],[29,11,29,12],[30,7,30,9],[30,11,30,12],[25,7,25,9],[25,11,25,12],[26,7,26,9],[26,11,26,12],[27,7,27,9],[27,11,27,12],[22,7,22,9],[22,11,22,12],[23,7,23,9],[23,11,23,12],[24,7,24,9],[24,11,24,12],[19,0,21,0],[19,1,19,2],[19,5,19,6],[19,7,21,9],[19,10,21,10],[19,11,21,12],[20,1,21,1],[20,2,21,2],[20,3,20,5],[14,7,14,11],[16,0,16,2],[16,5,16,8],[6,0,6,1],[6,2,6,4],[6,7,6,11],[8,0,8,1],[8,2,8,4],[8,7,8,11],[0,1,0,7],[0,11,0,12],[1,2,1,9],[2,2,2,9],[3,1,3,9],[4,5,4,10],[10,0,10,1],[10,2,10,4],[12,0,12,1],[12,2,12,4]]}
[]
[null,null,"КАРТОЧКА УЧЕТА",null,null,null,null,null,null,null,null,{"$f":"MID(CELL(\"filename\",A1),FIND(\"]\",CELL(\"filename\",A1))+1,65535)&\"/1\"","v":"АА55555/1"}]
[null,null,"работы автомобильной шины"]
[null,"(новой, восстановленной, бывшей в эксплуатации - нужное подчеркнуть)"]
[]
[]
["Обозначение (размер) шины",null," 385/65 R22,5",null,null,null,"Модель шины","ГГГГГГ"]
[]
["Заводской номер шины",null,11111111]
[]
["Эксплуатационная норма пробега",null,132000,null,null,"км"]
[]
["Стоимость шины",null,754.17,null,null,"рублей"]
[]
["Изготовитель новой шины или организация, восстановившая шину",null,null,null,null,null,null,"ММММММ"]
[]
["Наименование эксплуатирующей организации"]
[]
[]
["Модель автомобиля (прицепа), его государственный номер ","Дата",null,null,null,"Пробег шины,  км.",null,"Техническое состояние шины при установке",null,null,"Причина снятия шины с эксплуатации","Подпись водителя"]
[null,"установки шины  на ходовое или запасное колесо автомобиля","снятия шины с автомобиля","за период"]
[null,null,null,"с даты","по дату","за период","с начала эксплуатации"]
[1,2,3,4,null,5,6,7,null,null,8,9]
["АА55555","2020-04-17",null,{"$f":"B24","v":"2020-04-17"},"2020-12-31","2021-04-01",{"$f":"F24","v":"2021-04-01"},"новая"]
["DAF XF 480 FT",null,"2021-07-21","2021-01-01","2021-07-21","2023-05-02",{"$f":"G24+F25","v":"2144-08-02"},null,null,null,"износ"]
[]
["АА55555","2021-07-21",null,"2021-07-21"]
["LAG O-3-ST"]
[]
[]
[]
[]
[]
[]
[]
[]
[]
["Ответственный за учет работы шины"]
[null,null,null,null,"(подпись)",null,null,null,null,"(инициалы, фамилия)"]
[]
["Заключение комиссии по определению пригодности шины к эксплуатации"]
[]
[]
[]
[]
[]
["Председатель комиссии:"]
[]
["Заместитель главного бухгалтера"]
["(должность)",null,null,null,null,null,"(подпись)",null,null,null,"(инициалы, фамилия)"]
[]
["Члены комиссии:"]
[]
["Главный инженер"]
["(должность)",null,null,null,null,null,"(подпись)",null,null,null,"(инициалы, фамилия)"]
["Начальник отдела эксплуатации транспорта"]
["(должность)",null,null,null,null,null,"(подпись)",null,null,null,"(инициалы, фамилия)"]
["Агент по снабжению"]
["(должность)",null,null,null,null,null,"(подпись)",null,null,null,"(инициалы, фамилия)"]
[]
[]
[]
[]
[]
[null,null,"КАРТОЧКА УЧЕТА",null,null,null,null,null,null,null,null,{"$f":"MID(CELL(\"filename\",A64),FIND(\"]\",CELL(\"filename\",A64))+1,65535)&\"/2\"","v":"АА55555/2"}]
[null,null,"работы автомобильной шины"]
[null,"(новой, восстановленной, бывшей в эксплуатации - нужное подчеркнуть)"]
[]
[]
["Обозначение (размер) шины",null," 385/65 R22,5",null,null,null,"Модель шины","УУУУУУ"]
[]
["Заводской номер шины",null,5644999]
[]
["Эксплуатационная норма пробега",null,132000,null,null,"км"]
[]
["Стоимость шины",null,754.17,null,null,"рублей"]
[]
["Изготовитель новой шины или организация, восстановившая шину",null,null,null,null,null,null,"РРРРРР"]
[]
["Наименование эксплуатирующей организации"]
[]
[]
["Модель автомобиля (прицепа), его государственный номер ","Дата",null,null,null,"Пробег шины,  км.",null,"Техническое состояние шины при установке",null,null,"Причина снятия шины с эксплуатации","Подпись водителя"]
[null,"установки шины  на ходовое или запасное колесо автомобиля","снятия шины с автомобиля","за период"]
[null,null,null,"с даты","по дату","за период","с начала эксплуатации"]
[1,2,3,4,null,5,6,7,null,null,8,9]
["АА55555","2020-04-17",null,{"$f":"B87","v":"2020-04-17"},"2020-12-31","2021-05-01",{"$f":"F87","v":"2021-05-01"},"новая"]
["DAF XF 480 FT",null,"2021-07-21","2021-01-01","2021-07-21","2022-04-25",{"$f":"G87+F88","v":"2143-08-26"},null,null,null,"износ"]
[]
["АА55555","2021-07-21",null,"2021-07-21"]
["LAG O-3-ST"]
[]
[]
[]
[]
[]
[]
[]
[]
[]
["Ответственный за учет работы шины"]
[null,null,null,null,"(подпись)",null,null,null,null,"(инициалы, фамилия)"]
[]
["Заключение комиссии по определению пригодности шины к эксплуатации"]
[]
[]
[]
[]
[]
["Председатель комиссии:"]
[]
["Заместитель главного бухгалтера"]
["(должность)",null,null,null,null,null,"(подпись)",null,null,null,"(инициалы, фамилия)"]
[]
["Члены комиссии:"]
[]
["Главный инженер"]
["(должность)",null,null,null,null,null,"(подпись)",null,null,null,"(инициалы, фамилия)"]
["Начальник отдела эксплуатации транспорта"]
["(должность)",null,null,null,null,null,"(подпись)",null,null,null,"(инициалы, фамилия)"]
["Агент по снабжению"]
["(должность)",null,null,null,null,null,"(подпись)",null,null,null,"(инициалы, фамилия)"]